Cogmind - Beta 16 @@@ ROGUE MODE // 2026.01.31 @ 10:29:25 Player: Xan Kriegor Result: Self-destructed Performance ------------- Evolutions (1) 500 Regions Visited (3) 600 Robots Destroyed (10) 50 Value Destroyed (156) 156 Prototype IDs (1) 20 Alien Tech Used (0) 0 Bonus (0) 0 TOTAL SCORE: 1326 Bonus ------- None Cogmind --------- Core Integrity 400/400 Matter 241/300 Energy 237/250 System Corruption 0% Temperature Cool (0) Movement Treading (160) Location -9/Materials Parts ------- > --- POWER (1) -------- Ion Engine > --- PROPULSION (2) --- Light Treads Light Treads > --- UTILITY (4) ------ Large Storage Unit Experimental Sensor Array Terrain Scanner Targeting Computer > --- WEAPON (2) ------- Medium Laser Light Assault Rifle > --- INVENTORY (15) --- Light Treads Light Treads Compact Wheel Small Storage Unit Terrain Scanner Light Assault Rifle Light Assault Rifle Light Assault Rifle Peak State ------------ > --- POWER ------------ Ion Engine > --- PROPULSION ------- Light Treads Light Treads > --- UTILITY ---------- Small Storage Unit Experimental Sensor Array Terrain Scanner Targeting Computer > --- WEAPON ----------- Medium Laser Light Assault Rifle > --- INVENTORY -------- Aluminum Leg Compact Wheel Terrain Scanner Light Assault Rifle Light Assault Rifle Light Assault Rifle [Rating: 17] Favorites ----------- Power Ion Engine Engine Ion Engine Propulsion Light Treads Treads Light Treads Wheel Compact Wheel Utility Small Storage Unit Device Terrain Scanner Storage Small Storage Unit Processor Targeting Computer Weapon Light Assault Rifle Energy Gun Medium Laser Ballistic Gun Light Assault Rifle Build | -11 -10 -10 -9 ------- Run | Yrd Mat Min Mat Slots Evolved 2 | . . . 2 Power . | . . . . Propulsion . | . . . . Utility 2 | . . . 2 Weapon . | . . . . Parts Attached 19 | 6 3 5 5 Power 2 | 1 . 1 . Engine 2 | 1 . 1 . Core . | . . . . Reactor . | . . . . Propulsion 7 | 2 1 2 2 Treads 5 | . 1 2 2 Leg . | . . . . Wheel 2 | 2 . . . Hover . | . . . . Flight . | . . . . Utility 6 | 1 1 1 3 Device 3 | . 1 . 2 Storage 2 | 1 . . 1 Processor 1 | . . 1 . Hackware . | . . . . Protection . | . . . . Artifact . | . . . . Weapon 4 | 2 1 1 . Energy Gun 2 | 1 1 . . Energy Cannon . | . . . . Ballistic Gun 2 | 1 . 1 . Ballistic Cannon . | . . . . Launcher . | . . . . Special Weapon . | . . . . Impact Weapon . | . . . . Slashing Weapon . | . . . . Piercing Weapon . | . . . . Special Melee Weapon . | . . . . Unidentified Prototypes 1 | . . . 1 Parts Lost 3 | . 2 1 . Power 1 | . . 1 . Propulsion 1 | . 1 . . Utility . | . . . . Weapon 1 | . 1 . . Highest Loss Streak 2 | . 2 1 . To Critical Strikes . | . . . . Average Backups 6 | 2 7 6 7 Power . | . 1 . . Propulsion 2 | 1 3 2 2 Utility 2 | . 1 2 1 Weapon 1 | . 1 1 3 Tool/Special . | . . . . Unused Backups 5 | . 1 . 4 Power . | . . . . Propulsion 2 | . 1 . 1 Utility . | . . . . Weapon 3 | . . . 3 Tool/Special . | . . . . Average Slot Usage (%) 98 | . 98 99 92 Engine 13 | . 14 14 11 Treads 22 | . . 27 22 Wheel 4 | . 27 . . Device 11 | . 12 11 14 Storage 13 | . 14 14 11 Processor 3 | . . 2 11 Energy Gun 13 | . 14 14 11 Ballistic Gun 13 | . 14 14 11 Peak Build Rating 17 | 6 7 8 17 Average Rating 7 | 5 6 7 14 On Entrance 5 | . 6 7 8 Avg Prop Armor Cover (%) . | . . . . Naked Turns . | . . . . Heaviest Build 30 | 12 14 14 30 Greatest Support 40 | 26 26 40 40 Greatest Overweight (x) . | . . . . Average Overweight (x) . | . . . . Largest Inventory Capacity 15 | 8 8 8 15 Average Capacity 7 | 7 8 8 8 Most Carried 8 | 6 8 8 8 Average Carried 6 | 3 7 6 7 Final Capacity 15 | 8 8 8 15 Final Carried 8 | 6 6 8 8 Class Distribution -------------------- 100% | Mutant Dominant Class ---------------- Mutant | -10/Materials Mutant | -10/Mines Mutant | -9/Materials Resources | -11 -10 -10 -9 ----------- Run | Yrd Mat Min Mat Matter Collected 349 | 173 . 121 55 Remotely . | . . . . Salvage Created 213 | . 80 78 55 Parts 25 | . 9 13 3 Haulers Intercepted . | . . . . Recyclers Shooed 1 | . . 1 . Parts Field Recycled . | . . . . Retrieved Matter . | . . . . Parts Self-Destructed . | . . . . Prevented . | . . . . Parts Restored . | . . . . Kills | -11 -10 -10 -9 ------- Run | Yrd Mat Min Mat Combat Hostiles Destroyed 9 | . 3 5 1 Guns 9 | . 3 5 1 Classes Destroyed 4 | . 2 1 1 Tunneler 1 | . . 1 . Swarmer 7 | . 2 5 . Grunt 1 | . 1 . . Sentry 1 | . . . 1 Best Kill Streak 3 | . 3 3 1 Combat Bots Only 3 | . 3 3 1 Max Kills in Single Turn 1 | . 1 1 1 Gunslinging . | . . . . Exploded . | . . . . Melee . | . . . . Uniques/NPCs Destroyed . | . . . . Combat | -11 -10 -10 -9 -------- Run | Yrd Mat Min Mat Hostile Shots Fired 114 | . 41 69 4 Missed 30 | . 10 17 3 Hits 84 | . 31 52 1 Projectile 84 | . 31 52 1 Critical Strikes 1 | . . 1 . Damage Taken 706 | . 286 405 15 Core 81 | . 31 50 . Absorbed by Shields . | . . . . Core Remaining (%) 83 | 100 . 67 . Volleys Fired 33 | . 11 21 1 Largest 2 | . 2 2 2 Hottest 70 | . 60 70 70 Shots Fired 66 | . 22 42 2 Gun 66 | . 22 42 2 Cannon . | . . . . Launcher . | . . . . Special . | . . . . Kinetic 33 | . 11 21 1 Thermal 33 | . 11 21 1 Explosive . | . . . . Electromagnetic . | . . . . Robot Hit Streak 6 | . 4 6 3 Robot Miss Streak 7 | . 3 7 . Penetration Max . | . . . . Secondary Targets . | . . . . Shots Hit Robots 29 | . 10 17 2 Core Hits 16 | . 6 8 2 Critical Kills . | . . . . Critical Parts Destroyed . | . . . . Critical Strikes 1 | . . . 1 Burn 1 | . . . 1 Melee Attacks . | . . . . Impact . | . . . . Slashing . | . . . . Piercing . | . . . . Sneak Attacks . | . . . . Combat Hostiles . | . . . . Follow-up Attacks . | . . . . Damage Inflicted 345 | . 99 225 21 Guns 345 | . 99 225 21 Cannons . | . . . . Explosions . | . . . . Melee . | . . . . Ramming . | . . . . Kinetic 179 | . 43 127 9 Thermal 166 | . 56 98 12 Explosive . | . . . . Electromagnetic . | . . . . Impact . | . . . . Slashing . | . . . . Piercing . | . . . . Highest Corruption . | . . . . Average Corruption . | . . . . Corruption Purged . | . . . . Corruption Blocked . | . . . . Overload Shots . | . . . . Overflow Damage . | . . . . Projectiles . | . . . . Explosions . | . . . . Melee . | . . . . Knockbacks . | . . . . Impact . | . . . . Kinetic . | . . . . Secondary . | . . . . Self-Inflicted Damage . | . . . . Shots . | . . . . Rammed . | . . . . Targets Rammed 1 | . . 1 . Kicked . | . . . . Crushed 1 | . . 1 . Highest Temperature 172 | . 108 172 24 Average Temperature 68 | . 62 73 12 Received Heat Transfer 75 | . 66 . 9 Siege Activations . | . . . . Martial Activations . | . . . . Shielding Activations . | . . . . Robots Disrupted . | . . . . Combat Hostiles . | . . . . Robots Corrupted . | . . . . Combat Hostiles . | . . . . Parts Fried . | . . . . Impact Corruptions . | . . . . Robots Melted . | . . . . Combat Hostiles . | . . . . Parts Melted 1 | . . 1 . Heat Transferred 532 | . 125 296 111 Parts Sabotaged . | . . . . Parts Stolen . | . . . . Parts Stripped . | . . . . Power Chain Reactions . | . . . . Alert | -11 -10 -10 -9 ------- Run | Yrd Mat Min Mat Maximum Alert Level . | . . . . Low Security (%) 100 | 100 100 100 100 Level 1 . | . . . . Level 2 . | . . . . Level 3 . | . . . . Level 4 . | . . . . Level 5 . | . . . . High Security . | . . . . Max Security . | . . . . Peak Influence 130 | . 130 70 30 Initial 39 | . . 39 8 Average 13 | . 14 13 11 Influence Increases 293 | . 130 133 30 Destroy 0b10 Robot/C 180 | . 60 100 20 Destroy 0b10 Robot/NC 5 | . . 5 . Destroy Leader 40 | . 10 20 10 Successful Hack 8 | . . 8 . Lose Combat Pursuer 60 | . 60 . . Influence Decreases 283 | . 30 211 42 Entered New Map 75 | . . 61 14 Time Decay 188 | . 10 150 28 Lost Part 20 | . 20 . . Squads Dispatched 1 | . 1 . . Investigation . | . . . . Extermination . | . . . . Reinforcement 1 | . 1 . . Assault . | . . . . Garrison . | . . . . Intercept . | . . . . Searches Triggered . | . . . . Construction Impeded . | . . . . Haulers Reinforced . | . . . . Active Scanning Responses . | . . . . Cargo Convoy Interrupts . | . . . . Stealth | -11 -10 -10 -9 --------- Run | Yrd Mat Min Mat Distress Signals 3 | . 2 . 1 Communications Jammed . | . . . . Distress Signals . | . . . . Times Spotted 24 | . 14 6 4 Peak Tracking Total 12 | . 12 3 3 Tactical Retreats 1 | . 1 . . Traps | -11 -10 -10 -9 ------- Run | Yrd Mat Min Mat Traps Triggered . | . . . . Indirectly . | . . . . Trap Hack Attempts . | . . . . Triggered . | . . . . Disarmed . | . . . . Reprogrammed . | . . . . Reused . | . . . . Traps Extracted . | . . . . Installed . | . . . . Triggered . | . . . . Machines | -11 -10 -10 -9 ---------- Run | Yrd Mat Min Mat Machines Disabled . | . . . . Max in Single Turn . | . . . . Machines Repaired . | . . . . Machines Dismantled . | . . . . Machines Sabotaged . | . . . . Overloaded Fab Kills . | . . . . Hacking | -11 -10 -10 -9 --------- Run | Yrd Mat Min Mat Machines Accessed 2 | . . 2 . Terminals 1 | . . 1 . Fabricators . | . . . . Repair Stations . | . . . . Recycling Units . | . . . . Scanalyzers . | . . . . Garrison Access . | . . . . Total Hacks 2 | . . 2 . Successful 2 | . . 2 . Failed . | . . . . Catastrophic . | . . . . Database Lockouts . | . . . . Manual . | . . . . Terminals 1 | . . 1 . Fabricators . | . . . . Repair Stations . | . . . . Recycling Units . | . . . . Scanalyzers . | . . . . Garrison Access . | . . . . Terminal Hacks 2 | . . 2 . Open Door 1 | . . 1 . Level Access Points 1 | . . 1 . Fabricator Hacks . | . . . . Repair Station Hacks . | . . . . Recycling Unit Hacks . | . . . . Scanalyzer . | . . . . Garrison Access Hacks . | . . . . Unauthorized Hacks . | . . . . Terminals . | . . . . Fabricators . | . . . . Repair Stations . | . . . . Recycling Units . | . . . . Scanalyzers . | . . . . Garrison Access . | . . . . Data Cores Recovered . | . . . . Used . | . . . . Hacking Detections . | . . . . Full Trace Events . | . . . . Feedback Events . | . . . . Feedback Blocked . | . . . . Robot Schematics Acquired . | . . . . Robots Built . | . . . . Authchips . | . . . . Time . | . . . . Total Robot Build Rating . | . . . . Part Schematics Acquired . | . . . . Parts Built . | . . . . Authchips . | . . . . Time . | . . . . Total Part Build Rating . | . . . . Part Studies Acquired . | . . . . Parts Repaired . | . . . . Time . | . . . . Parts Recycled . | . . . . Recycled Matter . | . . . . Retrieved Matter . | . . . . Retrieved Components . | . . . . Parts Scanalyzed . | . . . . Part Schematics Acquired . | . . . . Parts Damaged . | . . . . Bothacking | -11 -10 -10 -9 ------------ Run | Yrd Mat Min Mat Used RIF Installer . | . . . . Robots Hacked . | . . . . Non-combat . | . . . . Combat . | . . . . Robot Hacks Applied . | . . . . Relay Couplers Released . | . . . . Fabnet Peak Effective % . | . . . . Robots Rewired . | . . . . Allies Hacked . | . . . . Hacks Repelled . | . . . . Allies | -11 -10 -10 -9 -------- Run | Yrd Mat Min Mat Total Allies . | . . . . Largest Group . | . . . . Highest-Rated Group . | . . . . Highest-Rated Ally . | . . . . Total Orders . | . . . . Ally Attacks . | . . . . Total Damage . | . . . . Kills . | . . . . Allies Corrupted . | . . . . Allies Melted . | . . . . Intel | -11 -10 -10 -9 ------- Run | Yrd Mat Min Mat Active Infowar (turns) 846 | . 159 631 56 Sensors 56 | . . . 56 Terrain 845 | . 159 631 55 Robot Analysis Total . | . . . . Derelict Logs Recovered 2 | . . 2 . Drone Launches . | . . . . Drone Recoveries . | . . . . Exploration | -11 -10 -10 -9 ------------- Run | Yrd Mat Min Mat Turns Passed 1110 | 61 171 799 79 Spaces Moved 690 | 54 143 456 37 Core 4 | 4 . . . Treads 498 | . 5 456 37 Legs . | . . . . Wheels 188 | 50 138 . . Hover . | . . . . Flight . | . . . . Fastest Speed 50 | 50 90 160 160 Average Speed 140 | 86 92 160 160 Slowest Speed 160 | 90 160 160 160 Overloaded Moves . | . . . . Propulsion Burnouts . | . . . . Robots Hopped . | . . . . Potential Cave-ins . | . . . . Cave-ins Triggered . | . . . . Exploration Rate (%) 30 | 4 34 78 6 Regions Visited 3 Branch Regions 1 Pre-discovered Areas 1 | . . 1 . Known Exits Taken 1 | . . 1 . Unknown Exits Taken 2 | 1 1 . . Scrap Searched 1 | . . 1 . Spaces Dug . | . . . . Terrain Destroyed . | . . . . Melee . | . . . . Projectile . | . . . . AOE . | . . . . Terrain Rammed . | . . . . Walls Destroyed . | . . . . Machines Disabled . | . . . . Actions | -11 -10 -10 -9 --------- Run | Yrd Mat Min Mat Total 771 | 65 162 490 54 Wait 13 | . 2 1 10 Move 687 | 53 142 455 37 Hop . | . . . . Pick Up 12 | 6 3 3 . Fast Attach 7 | 6 1 . . Attach 7 | . 2 3 2 Detach 2 | . . 2 . Swap 5 | . . 2 3 Drop 4 | . 1 2 1 Fire 33 | . 11 21 1 Melee . | . . . . Ram . | . . . . Kick . | . . . . Crush 1 | . . 1 . Escape Stasis . | . . . . Rewire . | . . . . Trap . | . . . . Miscellaneous . | . . . . Route ------- -11/Scrapyard -10/Materials -10/Mines (discovered 2 exits: *Mat x2) -9/Materials History --------- Turn | Location | Event 18 | -11/Scrapyard | Discovered new exit (range 16) 62 | -11/Scrapyard | Entered Materials 170 | -10/Materials | Discovered new exit (range 16) 233 | -10/Materials | Entered Mines 275 | -10/Mines | Learned Materials interactive machine intel 277 | -10/Mines | Learned location of Zion (-7) 312 | -10/Mines | Build established: Mutant 417 | -10/Mines | Found a damaged Exp. Sensor Array with a note attached 427 | -10/Mines | Found Prototype Device 715 | -10/Mines | Identified exit to Materials 996 | -10/Mines | Found the Drone Emporium 1032 | -10/Mines | Entered Materials 1032 | -9/Materials | Evolved 2 slots: Utility x2 1033 | -9/Materials | Loaded intel: 18 interactive machine locations 1055 | -9/Materials | Identified Exp. Sensor Array 1111 | -9/Materials | Self-destructed Last Messages --------------- Sealed Doors opened. 00996_ A4-WSF(g): "Well that was anticlimactic. Heard you outside and thought you were from the Merchants Guild. I haven't even officially opened my Drone Emporium yet but am totally ready to tell them where they can shove that C&D." 00998_ A4-WSF(g): "I'm a fan of the free market. Free drones for all! No strings attached!" 01023_ T-07 Excavator is excavating. PARAMETERS=UTILITY+2 LOCATION=MATERIALS GOAL=ESCAPE Loading Materials interactive machine intel (x18)... 01055_ Identified Exp. Sensor Array. 01065_ Y-45 Defender suffers critical hit (Burn). 01065_ Y-45 Defender destroyed. 01068_ K-01 Serf collects debris. 01068_ Acquired 55 matter. 01074_ K-01 Serf collects debris. 01082_ Dropped Aluminum Leg. 01088_ K-01 Serf collects debris. Map ----- +----------------------------------------------------+ | ????????????????????????????????????????????? | | ????????????????????????????????????????????? | | ????????????????????????????????????????????? | | ????????????????????????????????????????????? | | ????????????????????????????????????????????? | | ????????????????????????????????????????????? | | ????????????????????? ??????????????????????? | | ????????????????????? ??????????????????????? | | ????????????????????? ?????"""??????????????? | | T"??????????????????? ??????Y"??????????????? | | ""??????????????????? ?????"""??????????????? | | ????????????????????? ??????????????????????? | | ????????????????????? ??????????????????????? | | ????????????????????# #???"?????????????????? | | ????????????????????# #?????????????????????? | | ?????????????#??????# #??? ?????#???????????? | | ??????????????#?????# #?????????????????????? | | ??????????#?#######?# #?????????????????????? | | ???????????## ### ###########?????""????? | | ????????????#[ #?????Y"????? | | ????????#???# w #?????""????? | | ????????????#[ #???????????? | | ????????????# ###Y####### #?"?????????? | | ???T?????? ?## ## !!! #????????????????? | | ?????????? #?# ## !! #????????????????? | | ???? ????? ??# ## !!@ #????????????????? | | ?????? ??????# =## #????????????????? | | ???????????#?# ## #????????????????? | | ???????????#?# !## /????????????????? | | ????######+### ############?#?????????????? | | ? #?????????"?????? | | ? #?????????T?????? | | ? #?????????"?????? | | ?+#############+#############???????????????? | | ??????????????????????#?????????????????????? | | ????????????????????????????????????????????? | | ??????#??????????"???????#??????????????????? | | ????????#???????????????????????????????????? | | ????????????????????????????????????????????? | | ????????????????????????????????????????????? | | ????????????????????????????????????????????? | | ????????????????????????????????????????????? | | ????????????????????????????????????????????? | | ????????????????????????????????????????????? | | ????????????????????????????????????????????? | | | | | | | | | | | +----------------------------------------------------+ Best States ------------- Heat Dissipation 28 Energy Generation 10 Energy Capacity 250 Matter Stores 271 Matter Capacity 300 Sight Range 16 Robot Scan Range 20 Terrain Scan Range 14 Terrain Scan Density 10 Evasion (%) 44 Targeting Accuracy 5 Recoil Reduction 2 Item Schematics ----------------- None Robot Schematics ------------------ None Fabricated ------------ Nothing Repaired ---------- Nothing Studied --------- None Alien Tech Used ----------------- None Achievements -------------- None Challenges ------------ None Game ------ Seed ArchitectBiometalAutobeam Manual? 0 Play Time 00:07:03 Cumulative 39.8 hours Start 2026.01.30 @ 20:27:32 End 2026.01.31 @ 10:29:25 Sessions 3 Manual Loads 0 Difficulty Rogue Special Mode None Game No. 36 Rogue 36 Adventurer 0 Explorer 0 Win Type - Total 0 Types 0/0/0/0/0/0/0/0/0/0 Lore% 17 Gallery% 30 Achievement% 19 Wizard Run 0 Options --------- Layout 0 ASCII 0 Keyboard 1 Movement Numpad Keybinds 0 Fullscreen 2 Font 18/SmallcapsGlow Map View 76x50 Zoom Use 0% Tactical HUD 1 Map Filters NONE Filters NONE Steam 1 RUN: 849794d7-d3d0-46d6-b006-7f6e0e97cb8c